fUSD/lending_fUSD_20260703
["ID","MTS","AMOUNT","RATE_DAILY","PERIOD"]
[426961662,1783072238000,-200.0,0.0002112,2]
[426961660,1783072238000,-600.0,0.0002112,2]
[426961661,1783072238000,-300.0,0.0002112,2]
[426961656,1783072238000,-483.77004788,0.0002111,2]
[426961657,1783072238000,-300.0,0.0002112,2]
[426961658,1783072238000,-500.0,0.0002112,2]
[426961679,1783072238000,-8053.22239362,0.00023368,2]
[426961666,1783072238000,-2225.78325389,0.00022274,2]
[426961678,1783072238000,-1135.53760638,0.00023368,2]
[426961694,1783072238000,-500.0,0.00023648,2]
[426961677,1783072238000,-4663.81224001,0.00023368,2]
[426961675,1783072238000,-499.99,0.00023368,2]
[426961701,1783072238000,-500.0,0.00023648,2]
[426961699,1783072238000,-500.0,0.00023648,2]
[426961697,1783072238000,-500.0,0.00023648,2]
[426961695,1783072238000,-500.31188821,0.00023648,2]
[426961696,1783072238000,-392.70530956,0.00023648,2]
[426961698,1783072238000,-500.0,0.00023648,2]
[426961692,1783072238000,-500.0,0.00023648,2]
[426961693,1783072238000,-505.16108093,0.00023648,2]
[426961690,1783072238000,-3769.18,0.00023632,2]
[426961700,1783072238000,-355.00836146,0.00023648,2]
[426961688,1783072238000,-2225.78325389,0.00023539,2]
[426961689,1783072238000,-150.0,0.00023565,2]
[426961687,1783072238000,-1852.42,0.00023506,2]
[426961686,1783072238000,-891.44,0.00023498,2]
[426961685,1783072238000,-200.0,0.00023456,2]
[426961684,1783072238000,-11491.17,0.00023439,2]
[426961681,1783072238000,-299.99,0.00023368,7]
[426961683,1783072238000,-150.0,0.00023439,2]
[426961682,1783072238000,-9999.99,0.00023368,2]
[426961691,1783072238000,-500.0,0.00023648,2]
[426961680,1783072238000,-3674.79,0.00023368,2]
[426961764,1783072239000,-500.0,0.00023648,2]
[426961755,1783072239000,-500.0,0.00023648,2]
[426961757,1783072239000,-500.0,0.00023648,2]
[426961753,1783072239000,-500.0,0.00023648,2]
[426961747,1783072239000,-500.0,0.00023648,2]
[426961740,1783072239000,-500.0,0.00023648,2]
[426961749,1783072239000,-500.0,0.00023648,2]
[426961730,1783072239000,-500.0,0.00023648,2]
[426961762,1783072239000,-500.0,0.00023648,2]
[426961745,1783072239000,-500.0,0.00023648,2]
[426961751,1783072239000,-500.0,0.00023648,2]
[426961768,1783072239000,-500.0,0.00023648,2]
[426961790,1783072239000,-550.77255889,0.00023648,2]
[426961766,1783072239000,-500.0,0.00023648,2]
[426961770,1783072239000,-500.0,0.00023648,2]
[426961771,1783072239000,-500.0,0.00023648,2]
[426961774,1783072239000,-500.0,0.00023648,2]
[426961776,1783072239000,-500.0,0.00023648,2]
[426961778,1783072239000,-500.0,0.00023648,2]
[426961780,1783072239000,-500.0,0.00023648,2]
[426961784,1783072239000,-500.0,0.00023648,2]
[426961785,1783072239000,-500.0,0.00023648,2]
[426961741,1783072239000,-500.0,0.00023648,2]
[426961788,1783072239000,-500.0,0.00023648,2]
[426961796,1783072239000,-500.0,0.00023648,2]
[426961760,1783072239000,-500.0,0.00023648,2]
[426961737,1783072239000,-500.0,0.00023648,2]
[426961719,1783072239000,-500.0,0.00023648,2]
[426961733,1783072239000,-500.0,0.00023648,2]
[426961798,1783072239000,-500.0,0.00023648,2]
[426961702,1783072239000,-500.0,0.00023648,2]
[426961704,1783072239000,-514.75352256,0.00023648,2]
[426961703,1783072239000,-500.0,0.00023648,2]
[426961705,1783072239000,-500.0,0.00023648,2]
[426961706,1783072239000,-500.0,0.00023648,2]
[426961709,1783072239000,-500.0,0.00023648,2]
[426961708,1783072239000,-500.0,0.00023648,2]
[426961711,1783072239000,-500.0,0.00023648,2]
[426961710,1783072239000,-500.0,0.00023648,2]
[426961707,1783072239000,-500.0,0.00023648,2]
[426961713,1783072239000,-500.0,0.00023648,2]
[426961712,1783072239000,-378.76399932,0.00023648,2]
[426961715,1783072239000,-220.62855672,0.00023648,2]
[426961717,1783072239000,-500.0,0.00023648,2]
[426961716,1783072239000,-500.0,0.00023648,2]
[426961714,1783072239000,-500.0,0.00023648,2]
[426961718,1783072239000,-538.19126524,0.00023648,2]
[426961722,1783072239000,-500.0,0.00023648,2]
[426961720,1783072239000,-500.0,0.00023648,2]
[426961724,1783072239000,-500.0,0.00023648,2]
[426961726,1783072239000,-500.0,0.00023648,2]
[426961728,1783072239000,-500.0,0.00023648,2]
[426961732,1783072239000,-500.0,0.00023648,2]
[426961735,1783072239000,-430.0,0.00023648,2]
[426961743,1783072239000,-500.0,0.00023648,2]
[426961792,1783072239000,-500.0,0.00023648,2]
[426961782,1783072239000,-595.7512969,0.00023648,2]
[426961800,1783072239000,-150.0,0.00023648,2]
[426961865,1783072239000,-2543.05,0.00023978,2]
[426961860,1783072239000,-3707.84,0.00023898,2]
[426961867,1783072239000,-200.0,0.00024016,2]
[426961862,1783072239000,-500.0,0.00023922,2]
[426961871,1783072239000,-151.0,0.00024097,7]
[426961888,1783072239000,-151.0,0.000241,2]
[426961875,1783072239000,-222.32720956,0.000241,2]
[426961877,1783072239000,-151.0,0.000241,2]
[426961880,1783072239000,-151.0,0.000241,2]
[426961883,1783072239000,-151.0,0.000241,2]
[426961885,1783072239000,-151.0,0.000241,2]
[426961873,1783072239000,-151.0,0.000241,2]
[426961850,1783072239000,-151.0,0.00023786,2]
[426961882,1783072239000,-151.0,0.000241,2]
[426961881,1783072239000,-151.0,0.000241,2]
[426961887,1783072239000,-151.0,0.000241,2]
[426961889,1783072239000,-151.0,0.000241,2]
[426961890,1783072239000,-151.0,0.000241,2]
[426961892,1783072239000,-151.0,0.000241,2]
[426961895,1783072239000,-151.0,0.000241,2]
[426961901,1783072239000,-151.0,0.000241,2]
[426961903,1783072239000,-151.0,0.000241,2]
[426961897,1783072239000,-151.0,0.000241,2]
[426961899,1783072239000,-151.0,0.000241,2]
[426961907,1783072239000,-151.0,0.000241,2]
[426961794,1783072239000,-500.0,0.00023648,2]
[426961884,1783072239000,-151.0,0.000241,2]
[426961856,1783072239000,-502.0,0.00023808,2]
[426961909,1783072239000,-166.33,0.00024106,2]
[426961858,1783072239000,-2512.88,0.00023827,2]
[426961869,1783072239000,-1404.78854844,0.00024067,2]
[426961802,1783072239000,-500.0,0.00023648,2]
[426961812,1783072239000,-500.0,0.00023648,2]
[426961804,1783072239000,-500.0,0.00023648,2]
[426961817,1783072239000,-500.0,0.00023648,2]
[426961814,1783072239000,-500.0,0.00023648,2]
[426961905,1783072239000,-151.0,0.000241,2]
[426961820,1783072239000,-500.0,0.00023648,2]
[426961822,1783072239000,-500.0,0.00023648,2]
[426961810,1783072239000,-500.0,0.00023648,2]
[426961808,1783072239000,-500.0,0.00023648,2]
[426961806,1783072239000,-250.0,0.00023648,2]
[426961826,1783072239000,-500.0,0.00023648,2]
[426961815,1783072239000,-500.0,0.00023648,2]
[426961828,1783072239000,-500.0,0.00023648,2]
[426961824,1783072239000,-500.0,0.00023648,2]
[426961852,1783072239000,-151.0,0.00023786,2]
[426961836,1783072239000,-500.0,0.00023648,2]
[426961844,1783072239000,-5000.0,0.00023733,2]
[426961846,1783072239000,-846.13,0.00023763,2]
[426961848,1783072239000,-152.0,0.00023786,2]
[426961840,1783072239000,-3191.55,0.00023702,2]
[426961832,1783072239000,-500.0,0.00023648,2]
[426961834,1783072239000,-500.0,0.00023648,2]
[426961830,1783072239000,-500.0,0.00023648,2]
[426961838,1783072239000,-160.23,0.00023649,2]
[426961854,1783072239000,-150.0,0.00023786,2]
[426961966,1783072240000,-167.1689983,0.00024906,2]
[426961969,1783072240000,-176.81589568,0.00024906,2]
[426961979,1783072240000,-195.41986923,0.00025,2]
[426961971,1783072240000,-207.514802,0.00024951,14]
[426961975,1783072240000,-3932.6,0.00024961,7]
[426961984,1783072240000,-292.0,0.00025,2]
[426961976,1783072240000,-699.82437164,0.00025,2]
[426961973,1783072240000,-223.881002,0.00024951,14]
[426961986,1783072240000,-153.0,0.00025,2]
[426961981,1783072240000,-309.5765586,0.00025,2]
[426961999,1783072240000,-216.74224685,0.00025056,2]
[426961987,1783072240000,-260.0,0.00025,2]
[426961988,1783072240000,-408.0,0.00025,2]
[426961990,1783072240000,-153.0,0.00025,2]
[426961998,1783072240000,-160.0,0.00025052,2]
[426961992,1783072240000,-151.0,0.00025,2]
[426961991,1783072240000,-358.0,0.00025,2]
[426961989,1783072240000,-152.0,0.00025,2]
[426961993,1783072240000,-152.0,0.00025,2]
[426961996,1783072240000,-2512.88,0.00025018,2]
[426961964,1783072240000,-152.65807409,0.00024905,2]
[426961994,1783072240000,-419.0,0.00025,2]
[426961982,1783072240000,-258.0,0.00025,2]
[426961962,1783072240000,-286.74422314,0.00024905,2]
[426961922,1783072240000,-2225.78325389,0.00024171,2]
[426961955,1783072240000,-1640.46905668,0.00024869,2]
[426961995,1783072240000,-171.0,0.00025,2]
[426961912,1783072240000,-939.92551698,0.00024114,2]
[426961914,1783072240000,-402.12065919,0.00024117,2]
[426961916,1783072240000,-4191.0234,0.00024167,2]
[426961927,1783072240000,-3932.6,0.00024174,2]
[426961929,1783072240000,-489.63,0.00024174,2]
[426961925,1783072240000,-16521.22,0.00024174,2]
[426961933,1783072240000,-12341.26,0.00024267,2]
[426961931,1783072240000,-151.0,0.00024264,7]
[426961935,1783072240000,-155.29,0.00024299,2]
[426961937,1783072240000,-2438.87,0.00024378,2]
[426961957,1783072240000,-4345.59075823,0.000249,2]
[426961920,1783072240000,-4156.9751,0.00024167,2]
[426961924,1783072240000,-500.0,0.00024173,2]
[426961939,1783072240000,-2512.88,0.00024422,2]
[426961940,1783072240000,-237.24346268,0.0002456,2]
[426961946,1783072240000,-174.06,0.00024658,2]
[426961942,1783072240000,-166.15,0.00024658,2]
[426961944,1783072240000,-173.99,0.00024658,2]
[426961948,1783072240000,-630.61036031,0.00024762,2]
[426961961,1783072240000,-800.0,0.000249,9]
[426961950,1783072240000,-152.30153564,0.00024762,2]
[426961953,1783072240000,-2225.78325389,0.00024803,2]
[426961959,1783072240000,-631.48516713,0.000249,2]
[426961917,1783072240000,-6352.96,0.00024167,2]
[426961997,1783072240000,-630.61036031,0.00025036,2]
[426962003,1783072240000,-631.48516713,0.000252,2]
[426962011,1783072240000,-181.23,0.00025355,2]
[426962031,1783072240000,-400038.1339952,0.0002546,2]
[426962029,1783072240000,-500.0,0.00025459,2]
[426962030,1783072240000,-529.58,0.00025459,2]
[426962035,1783072240000,-464.25634489,0.000255,2]
[426962036,1783072240000,-350.0,0.00025522,2]
[426962040,1783072240000,-464.25634489,0.000256,2]
[426962038,1783072240000,-630.61036031,0.00025584,2]
[426962037,1783072240000,-464.25634489,0.0002555,2]
[426962039,1783072240000,-34903.45,0.000256,2]
[426962042,1783072240000,-2512.88,0.00025614,2]
[426962041,1783072240000,-514.75126813,0.000256,2]
[426962043,1783072240000,-350.0,0.00025624,2]
[426962045,1783072240000,-1604.87971452,0.00025665,2]
[426962046,1783072240000,-150.0,0.00025675,7]
[426962044,1783072240000,-289.60669505,0.00025647,2]
[426962048,1783072240000,-580.9512148,0.00025691,2]
[426962047,1783072240000,-207.64359543,0.0002569,2]
[426962049,1783072240000,-500.0,0.00025691,2]
[426962051,1783072240000,-500.0,0.00025691,2]
[426962001,1783072240000,-242.849659,0.00025186,14]
[426962053,1783072240000,-500.0,0.00025691,2]
[426962052,1783072240000,-500.0,0.00025691,2]
[426962054,1783072240000,-500.0,0.00025691,2]
[426962033,1783072240000,-699.82437164,0.000255,2]
[426962028,1783072240000,-500.0,0.00025459,2]
[426962050,1783072240000,-500.0,0.00025691,2]
[426962032,1783072240000,-160.506592,0.0002546,2]
[426962034,1783072240000,-309.5765586,0.000255,2]
[426962013,1783072240000,-4345.59075823,0.000254,2]
[426962002,1783072240000,-4345.59075823,0.000252,2]
[426962000,1783072240000,-1404.78854839,0.00025172,2]
[426962009,1783072240000,-152.30153564,0.0002531,2]
[426962010,1783072240000,-600.51,0.00025326,2]
[426962004,1783072240000,-699.82437164,0.000252,2]
[426962007,1783072240000,-630.61036031,0.0002531,2]
[426962005,1783072240000,-309.5765586,0.000252,2]
[426962014,1783072240000,-631.48516713,0.000254,2]
[426962015,1783072240000,-2225.78325389,0.00025436,2]
[426962012,1783072240000,-2500.0,0.00025358,2]
[426962018,1783072240000,-242.23160423,0.00025457,2]
[426962016,1783072240000,-151.0,0.00025457,7]
[426962025,1783072240000,-500.0,0.00025459,2]
[426962024,1783072240000,-500.0,0.00025459,2]
[426962022,1783072240000,-30896.74280253,0.00025458,2]
[426962027,1783072240000,-500.0,0.00025459,2]
[426962017,1783072240000,-500.0,0.00025457,2]
[426962023,1783072240000,-500.0,0.00025459,2]
[426962020,1783072240000,-500.0,0.00025457,2]
[426962019,1783072240000,-500.0,0.00025457,2]
[426962021,1783072240000,-151.0,0.00025457,7]
[426962026,1783072240000,-500.0,0.00025459,2]
[426962077,1783072241000,-309.5765586,0.000257,2]
[426962089,1783072241000,-219.014256,0.000257,2]
[426962073,1783072241000,-300.0,0.00025699,10]
[426962081,1783072241000,-583.225302,0.000257,2]
[426962082,1783072241000,-583.225302,0.000257,2]
[426962080,1783072241000,-240.529288,0.000257,2]
[426962083,1783072241000,-583.225302,0.000257,2]
[426962085,1783072241000,-151.0,0.000257,2]
[426962086,1783072241000,-219.014256,0.000257,2]
[426962094,1783072241000,-219.014256,0.000257,2]
[426962087,1783072241000,-219.014256,0.000257,2]
[426962090,1783072241000,-163.33736492,0.000257,2]
[426962091,1783072241000,-151.0,0.000257,15]
[426962095,1783072241000,-506.722984,0.000257,2]
[426962092,1783072241000,-506.722984,0.000257,2]
[426962093,1783072241000,-151.0,0.000257,15]
[426962096,1783072241000,-506.722984,0.000257,2]
[426962102,1783072241000,-294.49477712,0.000257,2]
[426962076,1783072241000,-699.82437164,0.000257,2]
[426962088,1783072241000,-506.722984,0.000257,2]
[426962075,1783072241000,-4345.59075823,0.000257,2]
[426962063,1783072241000,-500.0,0.00025699,2]
[426962072,1783072241000,-582.9167636,0.00025699,2]
[426962099,1783072241000,-151.0,0.000257,2]
[426962055,1783072241000,-500.0,0.00025691,2]
[426962056,1783072241000,-500.0,0.00025691,2]
[426962058,1783072241000,-500.0,0.00025691,2]
[426962057,1783072241000,-500.0,0.00025691,2]
[426962059,1783072241000,-426.94306664,0.00025691,2]
[426962060,1783072241000,-500.0,0.00025691,2]
[426962061,1783072241000,-500.0,0.00025691,2]
[426962062,1783072241000,-503.08851398,0.00025691,2]
[426962064,1783072241000,-494.16095271,0.00025699,2]
[426962066,1783072241000,-300.0,0.00025699,10]
[426962065,1783072241000,-500.0,0.00025699,2]
[426962067,1783072241000,-300.0,0.00025699,10]
[426962068,1783072241000,-300.0,0.00025699,10]
[426962069,1783072241000,-500.0,0.00025699,2]
[426962071,1783072241000,-500.0,0.00025699,2]
[426962079,1783072241000,-151.0,0.000257,2]
[426962070,1783072241000,-500.0,0.00025699,2]
[426962074,1783072241000,-631.48516713,0.000257,2]
[426962078,1783072241000,-1207347.42946763,0.000257,7]
[426962098,1783072241000,-151.0,0.000257,2]
[426962084,1783072241000,-583.225302,0.000257,2]
[426962101,1783072241000,-5528.0,0.000257,5]
[426962125,1783072241000,-506.722984,0.000258,2]
[426962129,1783072241000,-506.722984,0.000258,2]
[426962127,1783072241000,-506.722984,0.000258,2]
[426962130,1783072241000,-506.722984,0.000258,2]
[426962132,1783072241000,-151.0,0.000258,2]
[426962136,1783072241000,-4571.15731054,0.0002584,2]
[426962131,1783072241000,-151.0,0.000258,2]
[426962133,1783072241000,-151.0,0.000258,2]
[426962134,1783072241000,-151.0,0.000258,2]
[426962123,1783072241000,-219.014256,0.000258,2]
[426962135,1783072241000,-151.0,0.000258,2]
[426962138,1783072241000,-630.61036031,0.00025858,2]
[426962137,1783072241000,-806.03561476,0.0002584,2]
[426962140,1783072241000,-2600.0,0.000259,9]
[426962139,1783072241000,-152.30153564,0.00025858,2]
[426962143,1783072241000,-1081.0,0.00025937,2]
[426962141,1783072241000,-200.0,0.00025916,2]
[426962144,1783072241000,-613.87319993,0.0002599,2]
[426962142,1783072241000,-328.0,0.00025937,2]
[426962097,1783072241000,-151.0,0.000257,2]
[426962126,1783072241000,-219.014256,0.000258,2]
[426962118,1783072241000,-583.225302,0.000258,2]
[426962128,1783072241000,-219.014256,0.000258,2]
[426962115,1783072241000,-1700.0,0.000258,9]
[426962100,1783072241000,-151.001365,0.000257,2]
[426962104,1783072241000,-151.0,0.000257,2]
[426962103,1783072241000,-151.0,0.000257,2]
[426962106,1783072241000,-500.0,0.00025705,2]
[426962108,1783072241000,-300.0,0.00025799,10]
[426962107,1783072241000,-300.0,0.00025799,10]
[426962111,1783072241000,-500.0,0.000258,7]
[426962121,1783072241000,-583.225302,0.000258,2]
[426962112,1783072241000,-500.0,0.000258,7]
[426962145,1783072241000,-2020.64687491,0.00025996,2]
[426962109,1783072241000,-212769.88598561,0.000258,2]
[426962110,1783072241000,-500.0,0.000258,7]
[426962119,1783072241000,-583.225302,0.000258,2]
[426962114,1783072241000,-220.8,0.000258,7]
[426962113,1783072241000,-500.0,0.000258,7]
[426962122,1783072241000,-151.0,0.000258,2]
[426962120,1783072241000,-583.225302,0.000258,2]
[426962124,1783072241000,-219.014256,0.000258,2]
[426962117,1783072241000,-151.0,0.000258,2]
[426962105,1783072241000,-500.0,0.00025705,2]
[426962116,1783072241000,-470264.33671937,0.000258,2]
[426962146,1783072242000,-1834.93285063,0.00025996,2]
[426962147,1783072242000,-23.73806329,0.00025998,5]
[426962155,1783072243000,-613.62986001,0.00026,2]
[426962156,1783072243000,-4057.31390508,0.00026,2]
[426962152,1783072243000,-174.34275617,0.000257,4]
[426962154,1783072243000,-17.85530712,0.00026,2]
[426962157,1783072243000,-288.27685315,0.00026,2]
[426962153,1783072243000,-126.26193671,0.00025998,5]
[426962160,1783072243000,-309.5765586,0.00026,2]
[426962162,1783072243000,-292.0,0.00026,2]
[426962159,1783072243000,-452.1223711,0.00026,2]
[426962158,1783072243000,-247.70200054,0.00026,2]
[426962161,1783072243000,-258.0,0.00026,2]
[426962163,1783072243000,-45.37397817,0.00026,2]
[426962177,1783072246000,-23.55600216,0.00026,2]
[426962176,1783072246000,-155.01118584,0.00026,2]
[426962175,1783072246000,-152.0,0.00026,2]
[426962168,1783072246000,-443.52702558,0.00024999,2]
[426962173,1783072246000,-260.0,0.00026,2]
[426962171,1783072246000,-153.98,0.00025753,7]
[426962172,1783072246000,-107.62602183,0.00026,2]
[426962169,1783072246000,-281.45297271,0.00024999,2]
[426962170,1783072246000,-1823.0,0.00025457,2]
[426962167,1783072246000,-153.98,0.00024658,2]
[426962174,1783072246000,-408.0,0.00026,2]
[426962183,1783072270000,200.0,0.00026591,120]
[426962184,1783072286000,170.068107,0.00014689,2]
[426962185,1783072294000,549.79706108,0.00018355,2]
[426962186,1783072319000,1000.0,0.00024968,120]
[426962187,1783072354000,700.99,0.00027653,120]
[426962231,1783072515000,181.32,0.00017645,2]
[426962233,1783072517000,500.0,0.00030136,120]
[426962232,1783072517000,500.0,0.00030136,120]
[426962234,1783072523000,613.31,0.00030137,120]
[426962236,1783072694000,174.92,0.0001892,2]
[426962240,1783072814000,-259.91729049,0.00019278,2]
[426962242,1783072814000,-150.0,0.00019492,2]
[426962243,1783072814000,-550.0,0.0002,2]
[426962241,1783072814000,-319.36,0.00019355,7]
[426962244,1783072814000,-300.0,0.0002112,2]
[426962245,1783072814000,-193.57369918,0.0002112,2]
[426962247,1783072814000,-400.0,0.00021923,15]
[426962248,1783072814000,-18948.84,0.00022159,2]
[426962249,1783072814000,-1342.78,0.00022159,2]
[426962250,1783072814000,-313.0,0.0002352,2]
[426962251,1783072814000,-18948.84,0.00023521,2]
[426962252,1783072814000,-150.0,0.00023618,2]
[426962253,1783072814000,-9999.99,0.00023618,2]
[426962246,1783072814000,-250.0,0.0002112,2]
[426962272,1783072815000,-151.0,0.000241,2]
[426962270,1783072815000,-151.0,0.000241,2]
[426962271,1783072815000,-151.0,0.000241,2]
[426962269,1783072815000,-151.0,0.000241,2]
[426962268,1783072815000,-151.0,0.000241,2]
[426962267,1783072815000,-151.0,0.000241,2]
[426962266,1783072815000,-151.0,0.000241,2]
[426962265,1783072815000,-20042.5579,0.00024074,2]
[426962264,1783072815000,-181.09,0.00024064,2]
[426962260,1783072815000,-1050.0,0.00023777,2]
[426962261,1783072815000,-300.0,0.00023777,30]
[426962262,1783072815000,-158.91,0.00023953,2]
[426962257,1783072815000,-150.99,0.00023647,2]
[426962259,1783072815000,-9999.99,0.00023647,2]
[426962258,1783072815000,-4663.81,0.00023647,2]
[426962256,1783072815000,-500.0,0.00023647,2]
[426962255,1783072815000,-500.0,0.00023647,2]
[426962254,1783072815000,-500.0,0.00023647,2]
[426962273,1783072815000,-151.0,0.000241,2]
[426962263,1783072815000,-150.0,0.00024,2]
[426962275,1783072815000,-151.0,0.000241,2]
[426962294,1783072815000,-166.12,0.00024346,2]
[426962276,1783072815000,-151.0,0.000241,2]
[426962274,1783072815000,-151.0,0.000241,2]
[426962296,1783072815000,-1038.49536399,0.0002451,2]
[426962295,1783072815000,-2921.19,0.00024396,2]
[426962293,1783072815000,-200.0,0.00024315,2]
[426962291,1783072815000,-1853.92,0.00024226,2]
[426962292,1783072815000,-345.68999635,0.00024278,2]
[426962290,1783072815000,-3009.56,0.00024174,2]
[426962289,1783072815000,-22990.12,0.00024174,2]
[426962286,1783072815000,-500.0,0.00024174,2]
[426962288,1783072815000,-265.35,0.00024174,2]
[426962285,1783072815000,-151.0,0.000241,2]
[426962277,1783072815000,-151.0,0.000241,2]
[426962287,1783072815000,-990.17,0.00024174,2]
[426962279,1783072815000,-151.0,0.000241,2]
[426962280,1783072815000,-151.0,0.000241,2]
[426962278,1783072815000,-151.0,0.000241,2]
[426962282,1783072815000,-151.0,0.000241,2]
[426962283,1783072815000,-151.0,0.000241,2]
[426962284,1783072815000,-151.0,0.000241,2]
[426962281,1783072815000,-151.0,0.000241,2]
[426962302,1783072816000,-549.89049253,0.00024762,2]
[426962297,1783072816000,-700.99,0.00024581,2]
[426962298,1783072816000,-1042.55,0.00024655,7]
[426962299,1783072816000,-165.76,0.00024658,2]
[426962301,1783072816000,-190.29,0.00024658,2]
[426962300,1783072816000,-192.13,0.00024658,2]
[426962303,1783072816000,-152.48380851,0.00024762,2]
[426962311,1783072816000,-893.87711128,0.000249,2]
[426962305,1783072816000,-15996.41,0.00024882,7]
[426962306,1783072816000,-216.74224685,0.00024893,2]
[426962307,1783072816000,-160.0,0.00024897,2]
[426962309,1783072816000,-545.54618316,0.000249,2]
[426962308,1783072816000,-190.27724109,0.000249,2]
[426962310,1783072816000,-875.69656875,0.000249,2]
[426962312,1783072816000,-299.26157624,0.000249,2]
[426962304,1783072816000,-203.83052158,0.00024762,2]
[426962318,1783072829000,-159.99873375,0.00024906,2]
[426962313,1783072829000,-191.47,0.00024658,2]
[426962314,1783072829000,-151.0,0.00024776,2]
[426962317,1783072829000,-154.03039108,0.00024906,2]
[426962316,1783072829000,-8291.09269135,0.000249,2]
[426962315,1783072829000,-897.0,0.00024895,2]
[426962323,1783072829000,-153.0,0.00025,2]
[426962322,1783072829000,-179.68497724,0.00024974,2]
[426962320,1783072829000,-167.38571458,0.00024906,2]
[426962319,1783072829000,-158.2533184,0.00024906,2]
[426962325,1783072829000,-2779.09977103,0.00025,2]
[426962326,1783072829000,-157.0,0.00025,2]
[426962324,1783072829000,-50000.0,0.00025,2]
[426962321,1783072829000,-304.246837,0.0002491,2]
[426962327,1783072832000,190.27724109,0.000249,2]
[426962328,1783072833000,6066.46032448,0.00024581,2]
[426962329,1783072990000,152.76,0.00027169,120]
[426962331,1783073095000,333.32579995,0.00022788,120]
[426962333,1783073095000,333.32579995,0.00028171,120]
[426962332,1783073095000,333.32579995,0.00025479,120]
[426962334,1783073157000,420.59,0.00029866,120]
[426962346,1783073333000,500.0,0.00030136,120]
[426962347,1783073340000,2000.0,0.00030136,120]
[426962367,1783073431000,-92.23978225,0.00023435,2]
[426962373,1783073431000,-12341.26,0.00023549,2]
[426962369,1783073431000,-1135.53,0.00023475,2]
[426962370,1783073431000,-8740.11,0.00023475,2]
[426962371,1783073431000,-904.65,0.00023475,2]
[426962372,1783073431000,-200.0,0.00023486,2]
[426962368,1783073431000,-5000.0,0.00023475,2]
[426962359,1783073431000,-150.01,0.00019355,7]
[426962365,1783073431000,-333.69461845,0.00023331,2]
[426962360,1783073431000,-151.0,0.00021043,2]
[426962361,1783073431000,-411.97422444,0.00021063,2]
[426962364,1783073431000,-6899.32,0.00023007,2]
[426962362,1783073431000,-6954.73,0.00021593,2]
[426962374,1783073431000,-181.23,0.00023599,2]
[426962358,1783073431000,-230.44818455,0.00019278,2]
[426962366,1783073431000,-2450.81021775,0.00023435,2]
[426962375,1783073431000,-552.25396728,0.00023647,2]
[426962363,1783073431000,-1316.77,0.00022,2]
[426962377,1783073431000,-420.59,0.00023893,2]
[426962376,1783073431000,-2438.87,0.00023767,2]
[426962394,1783073431000,-489.63,0.00024174,2]
[426962392,1783073431000,-150.0,0.00024115,4]
[426962393,1783073431000,-152.76,0.0002415,2]
[426962390,1783073431000,-167.35133042,0.00024115,4]
[426962389,1783073431000,-150.0,0.00024115,4]